[Event "Early-Titled-Tuesday-Blitz-October-17-2023"]
[Site "Chess.com"]
[Date "2023.10.17"]
[Round "5"]
[White "Ermito2020"]
[Black "Treasurechess777"]
[Result "1-0"]
[WhiteElo "2600"]
[BlackElo "2453"]
[TimeControl "180+1"]
[EndTime "8:57:32 PDT"]
[Termination "Ermito2020 won on time"]

1. e4 {[%clk 0:03:00.9]} 1... Nf6 {[%clk 0:03:00.9]} 2. e5 {[%clk 0:03:00.2]}
2... Nd5 {[%clk 0:03:01.1]} 3. d4 {[%clk 0:03:00.7]} 3... Nb6 {[%clk 0:02:57.4]}
4. Nf3 {[%clk 0:02:57.6]} 4... d5 {[%clk 0:02:57.3]} 5. Be2 {[%clk 0:02:53.6]}
5... Bg4 {[%clk 0:02:54.8]} 6. O-O {[%clk 0:02:49.6]} 6... e6 {[%clk 0:02:54.1]}
7. a4 {[%clk 0:02:45.7]} 7... Bxf3 {[%clk 0:02:52.3]} 8. Bxf3 {[%clk 0:02:45.4]}
8... a5 {[%clk 0:02:53.2]} 9. Be2 {[%clk 0:02:42.3]} 9... c5 {[%clk 0:02:48.9]}
10. c3 {[%clk 0:02:41.8]} 10... c4 {[%clk 0:02:44.9]} 11. b3 {[%clk 0:02:36.1]}
11... Qc7 {[%clk 0:02:34]} 12. Ba3 {[%clk 0:02:11.7]} 12... Bxa3 {[%clk
0:02:01.6]} 13. Nxa3 {[%clk 0:02:12.6]} 13... O-O {[%clk 0:02:01.3]} 14. Rb1
{[%clk 0:01:51.6]} 14... Na6 {[%clk 0:01:49]} 15. bxc4 {[%clk 0:01:40.4]} 15...
dxc4 {[%clk 0:01:47.9]} 16. Rb5 {[%clk 0:01:29]} 16... Rab8 {[%clk 0:01:18.9]}
17. Qc2 {[%clk 0:01:26.6]} 17... f6 {[%clk 0:00:49.3]} 18. Rfb1 {[%clk
0:01:19.8]} 18... Nd5 {[%clk 0:00:48.6]} 19. Bxc4 {[%clk 0:01:19.7]} 19... fxe5
{[%clk 0:00:25.9]} 20. Bxd5 {[%clk 0:01:19]} 20... exd5 {[%clk 0:00:26.8]} 21.
Rxd5 {[%clk 0:01:19.5]} 21... exd4 {[%clk 0:00:25.5]} 22. Rxd4 {[%clk
0:01:16.2]} 22... Kh8 {[%clk 0:00:22.4]} 23. Nb5 {[%clk 0:01:13.1]} 23... Qf7
{[%clk 0:00:19.6]} 24. Nd6 {[%clk 0:01:12.3]} 24... Qf6 {[%clk 0:00:17.1]} 25.
f3 {[%clk 0:01:03.7]} 25... Nc5 {[%clk 0:00:13.4]} 26. Re1 {[%clk 0:00:54.6]}
26... Ne6 {[%clk 0:00:13.4]} 27. Rd5 {[%clk 0:00:46.7]} 27... Nf4 {[%clk
0:00:13.9]} 28. Rdd1 {[%clk 0:00:39.5]} 28... Rbd8 {[%clk 0:00:12.1]} 29. Ne4
{[%clk 0:00:39.6]} 29... Qg6 {[%clk 0:00:11.4]} 30. Kh1 {[%clk 0:00:34.8]} 30...
h5 {[%clk 0:00:08.1]} 31. c4 {[%clk 0:00:32.9]} 31... h4 {[%clk 0:00:07.4]} 32.
h3 {[%clk 0:00:33.4]} 32... Rde8 {[%clk 0:00:05.4]} 33. Qf2 {[%clk 0:00:32.6]}
33... Qh6 {[%clk 0:00:03.8]} 34. Rd6 {[%clk 0:00:31]} 34... g6 {[%clk 0:00:02]}
35. Qb2+ {[%clk 0:00:30.2]} 35... Re5 {[%clk 0:00:02.4]} 36. Qxe5+ {[%clk
0:00:28.9]} 1-0

[Event "Early-Titled-Tuesday-Blitz-October-17-2023"]
[Site "Chess.com"]
[Date "2023.10.17"]
[Round "5"]
[White "N4700000"]
[Black "atbenina64"]
[Result "1-0"]
[WhiteElo "2501"]
[BlackElo "2709"]
[TimeControl "180+1"]
[EndTime "8:57:35 PDT"]
[Termination "N4700000 won on time"]

1. e4 {[%clk 0:03:00.9]} 1... c5 {[%clk 0:02:43.1]} 2. Nf3 {[%clk 0:03:00.4]}
2... Nc6 {[%clk 0:02:39.4]} 3. Bb5 {[%clk 0:03:00.2]} 3... e6 {[%clk 0:02:38.1]}
4. O-O {[%clk 0:02:59.1]} 4... Nge7 {[%clk 0:02:36.6]} 5. Re1 {[%clk 0:02:57.4]}
5... b6 {[%clk 0:02:36.8]} 6. c3 {[%clk 0:02:52.8]} 6... a6 {[%clk 0:02:35.1]}
7. Bxc6 {[%clk 0:02:41]} 7... Nxc6 {[%clk 0:02:33]} 8. d4 {[%clk 0:02:41.5]}
8... d5 {[%clk 0:02:27.8]} 9. exd5 {[%clk 0:02:24.6]} 9... Qxd5 {[%clk
0:02:27.5]} 10. Nbd2 {[%clk 0:02:14.2]} 10... Be7 {[%clk 0:02:17.9]} 11. dxc5
{[%clk 0:01:52.1]} 11... bxc5 {[%clk 0:02:16.7]} 12. Qe2 {[%clk 0:01:46.4]}
12... O-O {[%clk 0:02:14.7]} 13. Nc4 {[%clk 0:01:45.8]} 13... Qf5 {[%clk
0:01:02.6]} 14. Nb6 {[%clk 0:01:29.7]} 14... Rb8 {[%clk 0:00:55.1]} 15. Nxc8
{[%clk 0:01:30]} 15... Rfxc8 {[%clk 0:00:56]} 16. Qxa6 {[%clk 0:01:25.5]} 16...
Qc2 {[%clk 0:00:49.2]} 17. Qe2 {[%clk 0:01:21.7]} 17... Qa4 {[%clk 0:00:47.4]}
18. Nd2 {[%clk 0:01:06.7]} 18... Na5 {[%clk 0:00:41.2]} 19. Ne4 {[%clk
0:00:57.9]} 19... Rb7 {[%clk 0:00:28]} 20. Bf4 {[%clk 0:00:50.2]} 20... c4
{[%clk 0:00:17]} 21. Nd6 {[%clk 0:00:44.6]} 21... Bxd6 {[%clk 0:00:17.1]} 22.
Bxd6 {[%clk 0:00:45.4]} 22... Qb5 {[%clk 0:00:16.1]} 23. Ba3 {[%clk 0:00:41.4]}
23... Nc6 {[%clk 0:00:14.4]} 24. Rad1 {[%clk 0:00:40.2]} 24... Nb8 {[%clk
0:00:13.2]} 25. Rd6 {[%clk 0:00:38.9]} 25... Nd7 {[%clk 0:00:11.5]} 26. Red1
{[%clk 0:00:37.6]} 26... h6 {[%clk 0:00:06.4]} 27. h3 {[%clk 0:00:32.8]} 27...
Qa4 {[%clk 0:00:04.3]} 28. Qe4 {[%clk 0:00:26.7]} 28... Rbc7 {[%clk 0:00:04.8]}
29. Qd4 {[%clk 0:00:21.2]} 29... Nf6 {[%clk 0:00:04.4]} 30. Rd8+ {[%clk
0:00:19.9]} 30... Rxd8 {[%clk 0:00:04.2]} 31. Qxd8+ {[%clk 0:00:20.4]} 31... Kh7
{[%clk 0:00:05]} 32. Qxc7 {[%clk 0:00:20.8]} 32... Qxd1+ {[%clk 0:00:04.9]} 33.
Kh2 {[%clk 0:00:21.2]} 33... Qe2 {[%clk 0:00:01.6]} 34. Qf4 {[%clk 0:00:17.3]}
1-0

[Event "Early-Titled-Tuesday-Blitz-October-17-2023"]
[Site "Chess.com"]
[Date "2023.10.17"]
[Round "5"]
[White "Keeper0416"]
[Black "stasOR4ik"]
[Result "1-0"]
[WhiteElo "2599"]
[BlackElo "2451"]
[TimeControl "180+1"]
[EndTime "8:57:36 PDT"]
[Termination "Keeper0416 won by checkmate"]

1. a4 {[%clk 0:02:50.1]} 1... d5 {[%clk 0:02:59.4]} 2. d4 {[%clk 0:02:49.6]}
2... Nf6 {[%clk 0:02:58.2]} 3. Nf3 {[%clk 0:02:50]} 3... c5 {[%clk 0:02:57.5]}
4. c3 {[%clk 0:02:49]} 4... Nc6 {[%clk 0:02:57]} 5. Bf4 {[%clk 0:02:48.5]} 5...
cxd4 {[%clk 0:02:55.6]} 6. Nxd4 {[%clk 0:02:48.4]} 6... g6 {[%clk 0:02:38.5]} 7.
Nb5 {[%clk 0:02:47.4]} 7... e5 {[%clk 0:02:36.1]} 8. Bg5 {[%clk 0:02:46.3]} 8...
Bg7 {[%clk 0:02:03.7]} 9. Bxf6 {[%clk 0:02:46.2]} 9... Bxf6 {[%clk 0:01:58.3]}
10. Qxd5 {[%clk 0:02:45.7]} 10... O-O {[%clk 0:01:52.6]} 11. Qxd8 {[%clk
0:02:45.5]} 11... Rxd8 {[%clk 0:01:51.3]} 12. e4 {[%clk 0:02:44.1]} 12... Na5
{[%clk 0:01:36.8]} 13. Nc7 {[%clk 0:02:38]} 13... Bg4 {[%clk 0:01:25.2]} 14. f3
{[%clk 0:02:37.5]} 14... Rac8 {[%clk 0:01:24]} 15. Nd5 {[%clk 0:02:37]} 15...
Bh4+ {[%clk 0:01:23.5]} 16. Ke2 {[%clk 0:02:29.5]} 16... Be6 {[%clk 0:01:19.5]}
17. g3 {[%clk 0:01:57.3]} 17... Bg5 {[%clk 0:01:03.4]} 18. h4 {[%clk 0:01:51.3]}
18... Bxd5 {[%clk 0:01:00.1]} 19. exd5 {[%clk 0:01:36.6]} 19... Bc1 {[%clk
0:00:57.7]} 20. Bh3 {[%clk 0:01:22.4]} 20... Bxb2 {[%clk 0:00:50.9]} 21. Ra2
{[%clk 0:01:22.4]} 21... Rxc3 {[%clk 0:00:28.6]} 22. Rxb2 {[%clk 0:01:22.3]}
22... Rc4 {[%clk 0:00:22]} 23. Nd2 {[%clk 0:01:20.3]} 23... Rxa4 {[%clk
0:00:20.3]} 24. Ne4 {[%clk 0:01:19.3]} 24... f5 {[%clk 0:00:19.4]} 25. Nc5
{[%clk 0:01:19.3]} 25... Rd4 {[%clk 0:00:17.6]} 26. Ne6 {[%clk 0:01:17.2]} 26...
Nc4 {[%clk 0:00:16.4]} 27. Ra2 {[%clk 0:01:10.7]} 27... R8xd5 {[%clk 0:00:14.7]}
28. Nxd4 {[%clk 0:01:10.5]} 28... exd4 {[%clk 0:00:14.9]} 29. Rd1 {[%clk
0:00:58.7]} 29... a6 {[%clk 0:00:14.8]} 30. f4 {[%clk 0:00:58]} 30... b5 {[%clk
0:00:14.4]} 31. Rxa6 {[%clk 0:00:52.5]} 31... Nb2 {[%clk 0:00:14.6]} 32. Rd3
{[%clk 0:00:35.8]} 32... Nxd3 {[%clk 0:00:12.7]} 33. Kxd3 {[%clk 0:00:36.7]}
33... b4 {[%clk 0:00:12.7]} 34. Rb6 {[%clk 0:00:33.9]} 34... Rc5 {[%clk
0:00:12.9]} 35. Kxd4 {[%clk 0:00:31.2]} 35... Rc3 {[%clk 0:00:13]} 36. Ke5
{[%clk 0:00:27.6]} 36... Rxg3 {[%clk 0:00:11.3]} 37. Kf6 {[%clk 0:00:28.2]}
37... h6 {[%clk 0:00:09.1]} 38. Bf1 {[%clk 0:00:26.5]} 38... Rf3 {[%clk
0:00:08.5]} 39. Bc4+ {[%clk 0:00:25.5]} 39... Kh8 {[%clk 0:00:08.5]} 40. Kxg6
{[%clk 0:00:23.6]} 40... Rxf4 {[%clk 0:00:08.7]} 41. Rb8# {[%clk 0:00:22.9]} 1-0

[Event "Early-Titled-Tuesday-Blitz-October-17-2023"]
[Site "Chess.com"]
[Date "2023.10.17"]
[Round "5"]
[White "rikchessmx"]
[Black "WindWhistler11"]
[Result "0-1"]
[WhiteElo "2262"]
[BlackElo "2462"]
[TimeControl "180+1"]
[EndTime "8:57:36 PDT"]
[Termination "WindWhistler11 won by checkmate"]

1. e4 {[%clk 0:02:39.7]} 1... e6 {[%clk 0:02:58.2]} 2. d4 {[%clk 0:02:39.3]}
2... d5 {[%clk 0:02:59.1]} 3. Nc3 {[%clk 0:02:38.7]} 3... Bb4 {[%clk 0:02:58.9]}
4. e5 {[%clk 0:02:37.7]} 4... Ne7 {[%clk 0:02:59.4]} 5. a3 {[%clk 0:02:37.8]}
5... Ba5 {[%clk 0:02:56.7]} 6. b4 {[%clk 0:02:37]} 6... Bb6 {[%clk 0:02:56.9]}
7. Nf3 {[%clk 0:02:34.7]} 7... Nf5 {[%clk 0:02:57.3]} 8. Ne2 {[%clk 0:02:33.6]}
8... Nc6 {[%clk 0:02:57.7]} 9. c3 {[%clk 0:02:33.2]} 9... f6 {[%clk 0:02:58.1]}
10. g4 {[%clk 0:02:27.5]} 10... Nfe7 {[%clk 0:02:55.8]} 11. exf6 {[%clk
0:02:27.3]} 11... gxf6 {[%clk 0:02:56.6]} 12. Ng3 {[%clk 0:02:25.8]} 12... Ng6
{[%clk 0:02:54.6]} 13. Bg2 {[%clk 0:02:22.5]} 13... e5 {[%clk 0:02:50.2]} 14. g5
{[%clk 0:02:20]} 14... e4 {[%clk 0:02:48.1]} 15. Nh4 {[%clk 0:02:15]} 15... Nxh4
{[%clk 0:02:44.2]} 16. Qh5+ {[%clk 0:02:13.5]} 16... Ng6 {[%clk 0:02:44.7]} 17.
gxf6 {[%clk 0:02:13.7]} 17... Qxf6 {[%clk 0:02:43.3]} 18. Bg5 {[%clk 0:02:13.6]}
18... Qf7 {[%clk 0:02:42]} 19. Bh6 {[%clk 0:02:10.6]} 19... Nce7 {[%clk
0:02:30.9]} 20. a4 {[%clk 0:02:08.1]} 20... c6 {[%clk 0:02:30.7]} 21. O-O {[%clk
0:02:03.9]} 21... Bc7 {[%clk 0:02:29.8]} 22. f3 {[%clk 0:02:03.9]} 22... e3
{[%clk 0:02:16.6]} 23. Bxe3 {[%clk 0:01:56.9]} 23... Bf4 {[%clk 0:02:17.2]} 24.
Bxf4 {[%clk 0:01:46.4]} 24... Nxf4 {[%clk 0:02:14.1]} 25. Qe5 {[%clk 0:01:46.2]}
25... O-O {[%clk 0:02:05.9]} 26. Rae1 {[%clk 0:01:42.1]} 26... Neg6 {[%clk
0:02:05.6]} 27. Qg5 {[%clk 0:01:35.3]} 27... Bh3 {[%clk 0:02:04.7]} 28. Nh5
{[%clk 0:01:17.9]} 28... Bxg2 {[%clk 0:01:55.7]} 29. Nxf4 {[%clk 0:01:15.9]}
29... Qxf4 {[%clk 0:01:54.9]} 30. Qxg2 {[%clk 0:01:15.2]} 30... Kh8 {[%clk
0:01:42.8]} 31. Qg3 {[%clk 0:01:15]} 31... Qf7 {[%clk 0:01:41]} 32. Kh1 {[%clk
0:01:13.8]} 32... Nf4 {[%clk 0:01:41.2]} 33. Qh4 {[%clk 0:01:06.4]} 33... Rg8
{[%clk 0:01:26.7]} 34. Rg1 {[%clk 0:00:53.7]} 34... Ng6 {[%clk 0:01:03.6]} 35.
Qh3 {[%clk 0:00:47.5]} 35... Raf8 {[%clk 0:00:57.6]} 36. Rg3 {[%clk 0:00:46.3]}
36... Nf4 {[%clk 0:00:55.1]} 37. Qh4 {[%clk 0:00:27.2]} 37... Nd3 {[%clk
0:00:39.1]} 38. Re7 {[%clk 0:00:20.3]} 38... Qf5 {[%clk 0:00:27.2]} 39. Rxg8+
{[%clk 0:00:09.1]} 39... Rxg8 {[%clk 0:00:25.2]} 40. Rxb7 {[%clk 0:00:08.5]}
40... Nf2+ {[%clk 0:00:22.6]} 41. Qxf2 {[%clk 0:00:08.1]} 41... Qb1+ {[%clk
0:00:23]} 42. Qf1 {[%clk 0:00:06.4]} 42... Qxf1# {[%clk 0:00:23]} 0-1

[Event "Early-Titled-Tuesday-Blitz-October-17-2023"]
[Site "Chess.com"]
[Date "2023.10.17"]
[Round "5"]
[White "Mikhail_Golubev"]
[Black "Juicy_Fork"]
[Result "1-0"]
[WhiteElo "2575"]
[BlackElo "2421"]
[TimeControl "180+1"]
[EndTime "8:57:37 PDT"]
[Termination "Mikhail_Golubev won on time"]

1. e4 {[%clk 0:03:00.9]} 1... e5 {[%clk 0:02:59]} 2. Nf3 {[%clk 0:03:00.8]} 2...
Nc6 {[%clk 0:02:59.2]} 3. Bc4 {[%clk 0:03:00.8]} 3... Nf6 {[%clk 0:02:58.9]} 4.
Ng5 {[%clk 0:03:00.8]} 4... d5 {[%clk 0:02:58.4]} 5. exd5 {[%clk 0:03:00.7]}
5... Na5 {[%clk 0:02:58.7]} 6. Bb5+ {[%clk 0:03:00.8]} 6... c6 {[%clk
0:02:59.3]} 7. dxc6 {[%clk 0:03:01.4]} 7... bxc6 {[%clk 0:03:00.2]} 8. Bd3
{[%clk 0:03:01.6]} 8... Ng4 {[%clk 0:02:54.3]} 9. Nh3 {[%clk 0:02:53.7]} 9... f5
{[%clk 0:02:48.1]} 10. Be2 {[%clk 0:02:41.9]} 10... Bc5 {[%clk 0:02:44.8]} 11.
c3 {[%clk 0:02:25.7]} 11... Bb6 {[%clk 0:02:37.2]} 12. a4 {[%clk 0:01:46.5]}
12... Nb7 {[%clk 0:02:29.8]} 13. d4 {[%clk 0:01:21.6]} 13... exd4 {[%clk
0:02:20.6]} 14. Bg5 {[%clk 0:01:19.7]} 14... Qd5 {[%clk 0:02:17.9]} 15. O-O
{[%clk 0:01:08.8]} 15... O-O {[%clk 0:02:09.4]} 16. cxd4 {[%clk 0:00:56.8]}
16... h6 {[%clk 0:01:52.4]} 17. Nc3 {[%clk 0:00:53.8]} 17... Qxd4 {[%clk
0:01:43.2]} 18. Qb3+ {[%clk 0:00:53.5]} 18... Kh8 {[%clk 0:01:38.7]} 19. Rad1
{[%clk 0:00:32.2]} 19... Qc5 {[%clk 0:01:25.5]} 20. Nf4 {[%clk 0:00:24.7]} 20...
Kh7 {[%clk 0:01:18.4]} 21. Nd3 {[%clk 0:00:18.6]} 21... Qd6 {[%clk 0:01:06]} 22.
Bf4 {[%clk 0:00:18]} 22... Qg6 {[%clk 0:01:06.6]} 23. Bxg4 {[%clk 0:00:14]}
23... Qxg4 {[%clk 0:01:01.5]} 24. g3 {[%clk 0:00:12]} 24... Nd8 {[%clk
0:00:50.2]} 25. Ne5 {[%clk 0:00:11.4]} 25... Qh5 {[%clk 0:00:44.9]} 26. a5
{[%clk 0:00:11.6]} 26... Bxa5 {[%clk 0:00:41.9]} 27. Qa3 {[%clk 0:00:11.6]}
27... Bxc3 {[%clk 0:00:31.7]} 28. Qxf8 {[%clk 0:00:11.2]} 28... Bxb2 {[%clk
0:00:26.3]} 29. Rxd8 {[%clk 0:00:09.1]} 29... Bxe5 {[%clk 0:00:15.3]} 30. Bxe5
{[%clk 0:00:09.4]} 1-0

[Event "Early-Titled-Tuesday-Blitz-October-17-2023"]
[Site "Chess.com"]
[Date "2023.10.17"]
[Round "5"]
[White "KVAIDAN"]
[Black "vishwa_vijeta"]
[Result "0-1"]
[WhiteElo "2279"]
[BlackElo "2530"]
[TimeControl "180+1"]
[EndTime "8:57:42 PDT"]
[Termination "vishwa_vijeta won by checkmate"]

1. f4 {[%clk 0:02:16.4]} 1... g6 {[%clk 0:02:46.8]} 2. Nf3 {[%clk 0:02:16.2]}
2... Bg7 {[%clk 0:02:46.6]} 3. d3 {[%clk 0:02:15.8]} 3... d6 {[%clk 0:02:46.6]}
4. e4 {[%clk 0:02:16.1]} 4... e5 {[%clk 0:02:46.7]} 5. Be2 {[%clk 0:02:16.7]}
5... Nc6 {[%clk 0:02:42.2]} 6. O-O {[%clk 0:02:17.2]} 6... Nge7 {[%clk
0:02:42.1]} 7. Nc3 {[%clk 0:02:17.1]} 7... O-O {[%clk 0:02:40]} 8. Qe1 {[%clk
0:02:17.6]} 8... f5 {[%clk 0:02:38]} 9. Qh4 {[%clk 0:02:14.6]} 9... Nd4 {[%clk
0:02:14.4]} 10. Bd1 {[%clk 0:02:08.4]} 10... Nec6 {[%clk 0:02:01.9]} 11. Qxd8
{[%clk 0:02:06.1]} 11... Rxd8 {[%clk 0:02:00.6]} 12. Nd5 {[%clk 0:02:06.7]}
12... Nxf3+ {[%clk 0:01:53.9]} 13. Bxf3 {[%clk 0:02:06]} 13... Rd7 {[%clk
0:01:29.1]} 14. exf5 {[%clk 0:02:04.2]} 14... gxf5 {[%clk 0:01:28.6]} 15. fxe5
{[%clk 0:01:56.8]} 15... dxe5 {[%clk 0:01:26.5]} 16. Bg5 {[%clk 0:01:55.8]}
16... Nd4 {[%clk 0:01:23.6]} 17. Nf6+ {[%clk 0:01:55.6]} 17... Bxf6 {[%clk
0:01:22]} 18. Bxf6 {[%clk 0:01:55.9]} 18... Nxc2 {[%clk 0:01:21.8]} 19. Rac1
{[%clk 0:01:48.2]} 19... Nb4 {[%clk 0:01:20.8]} 20. d4 {[%clk 0:01:27.2]} 20...
e4 {[%clk 0:01:01.5]} 21. Bh5 {[%clk 0:01:18.1]} 21... Nd3 {[%clk 0:00:37.7]}
22. Rc2 {[%clk 0:01:16.1]} 22... f4 {[%clk 0:00:34]} 23. Re2 {[%clk 0:01:09.6]}
23... Rd5 {[%clk 0:00:33.4]} 24. g4 {[%clk 0:00:53.8]} 24... e3 {[%clk
0:00:26.3]} 25. g5 {[%clk 0:00:50.1]} 25... h6 {[%clk 0:00:22.4]} 26. h4 {[%clk
0:00:48.4]} 26... hxg5 {[%clk 0:00:21.5]} 27. hxg5 {[%clk 0:00:48.7]} 27... Bf5
{[%clk 0:00:21.8]} 28. Bf3 {[%clk 0:00:48.3]} 28... c6 {[%clk 0:00:20.3]} 29.
Rh2 {[%clk 0:00:44.3]} 29... Kf7 {[%clk 0:00:18.3]} 30. Bxd5+ {[%clk 0:00:40.1]}
30... cxd5 {[%clk 0:00:19.2]} 31. Rc2 {[%clk 0:00:40.3]} 31... Be4 {[%clk
0:00:14.4]} 32. Rc7+ {[%clk 0:00:40.3]} 32... Kg6 {[%clk 0:00:14.7]} 33. Rxb7
{[%clk 0:00:36.1]} 33... Rc8 {[%clk 0:00:14.4]} 34. Rb3 {[%clk 0:00:31.6]} 34...
Rc2 {[%clk 0:00:14.2]} 35. Rxd3 {[%clk 0:00:28.4]} 35... Rg2+ {[%clk 0:00:14.1]}
36. Kh1 {[%clk 0:00:28]} 36... Rf2+ {[%clk 0:00:13.9]} 37. Kg1 {[%clk
0:00:26.3]} 37... Rxf1+ {[%clk 0:00:12.9]} 38. Kxf1 {[%clk 0:00:26]} 38... Bxd3+
{[%clk 0:00:13.3]} 39. Ke1 {[%clk 0:00:26]} 39... f3 {[%clk 0:00:13.1]} 40. Kd1
{[%clk 0:00:24]} 40... f2 {[%clk 0:00:13.3]} 41. b4 {[%clk 0:00:23.4]} 41...
f1=Q# {[%clk 0:00:14.2]} 0-1

[Event "Early-Titled-Tuesday-Blitz-October-17-2023"]
[Site "Chess.com"]
[Date "2023.10.17"]
[Round "5"]
[White "Aygehovit1992"]
[Black "AsadliVugar"]
[Result "0-1"]
[WhiteElo "2699"]
[BlackElo "2890"]
[TimeControl "180+1"]
[EndTime "8:57:43 PDT"]
[Termination "AsadliVugar won on time"]

1. e4 {[%clk 0:02:29.3]} 1... g6 {[%clk 0:02:56.8]} 2. d4 {[%clk 0:02:28.4]}
2... d6 {[%clk 0:02:57.2]} 3. Nc3 {[%clk 0:02:28.8]} 3... c6 {[%clk 0:02:57.2]}
4. Be3 {[%clk 0:02:28.6]} 4... b5 {[%clk 0:02:56.5]} 5. a4 {[%clk 0:02:26.3]}
5... b4 {[%clk 0:02:56.5]} 6. Nce2 {[%clk 0:02:26.7]} 6... Nf6 {[%clk
0:02:51.3]} 7. f3 {[%clk 0:02:23.8]} 7... h5 {[%clk 0:02:47.1]} 8. Nf4 {[%clk
0:02:21.3]} 8... Nbd7 {[%clk 0:02:42.2]} 9. Bc4 {[%clk 0:02:19.6]} 9... d5
{[%clk 0:02:12.1]} 10. Bb3 {[%clk 0:02:18.3]} 10... dxe4 {[%clk 0:02:09]} 11.
Qd2 {[%clk 0:02:14.1]} 11... Nb6 {[%clk 0:02:05.1]} 12. O-O-O {[%clk 0:02:11.6]}
12... Nbd5 {[%clk 0:02:01.5]} 13. Nge2 {[%clk 0:01:55]} 13... exf3 {[%clk
0:01:54.3]} 14. gxf3 {[%clk 0:01:54]} 14... h4 {[%clk 0:01:53.7]} 15. Kb1 {[%clk
0:01:51.9]} 15... Bf5 {[%clk 0:01:52.9]} 16. Nxd5 {[%clk 0:01:37.5]} 16... Nxd5
{[%clk 0:01:51.3]} 17. Nf4 {[%clk 0:01:37.1]} 17... e6 {[%clk 0:01:47.5]} 18.
Nxd5 {[%clk 0:01:30.6]} 18... cxd5 {[%clk 0:01:47.8]} 19. Bg5 {[%clk 0:01:27.4]}
19... Be7 {[%clk 0:01:44.7]} 20. Bxe7 {[%clk 0:01:25.5]} 20... Qxe7 {[%clk
0:01:45]} 21. Rhe1 {[%clk 0:01:26.4]} 21... Rc8 {[%clk 0:01:39.9]} 22. Rc1
{[%clk 0:01:21.2]} 22... O-O {[%clk 0:01:29.4]} 23. Bxd5 {[%clk 0:01:20.2]}
23... Rfd8 {[%clk 0:01:29.4]} 24. Bb3 {[%clk 0:01:18.8]} 24... Qf6 {[%clk
0:01:18.8]} 25. Rcd1 {[%clk 0:01:18.4]} 25... a5 {[%clk 0:01:18.3]} 26. Re5
{[%clk 0:01:15.6]} 26... Qxe5 {[%clk 0:00:58.9]} 27. dxe5 {[%clk 0:01:16.5]}
27... Rxd2 {[%clk 0:00:59.2]} 28. Rxd2 {[%clk 0:01:17.4]} 28... Kf8 {[%clk
0:00:53.5]} 29. f4 {[%clk 0:01:13.2]} 29... h3 {[%clk 0:00:45.6]} 30. Rd4 {[%clk
0:01:05.4]} 30... Ke7 {[%clk 0:00:45.7]} 31. Bc4 {[%clk 0:00:55.5]} 31... f6
{[%clk 0:00:40.7]} 32. exf6+ {[%clk 0:00:40.9]} 32... Kxf6 {[%clk 0:00:40.3]}
33. Bd3 {[%clk 0:00:39.8]} 33... Rh8 {[%clk 0:00:33.9]} 34. c3 {[%clk
0:00:28.6]} 34... bxc3 {[%clk 0:00:33.5]} 35. bxc3 {[%clk 0:00:28.1]} 35... Rh4
{[%clk 0:00:32.2]} 36. Kc2 {[%clk 0:00:24.8]} 36... Rg4 {[%clk 0:00:32.1]} 37.
Bxf5 {[%clk 0:00:02.7]} 37... Rg2+ {[%clk 0:00:31.8]} 38. Rd2 {[%clk 0:00:00.4]}
38... Kxf5 {[%clk 0:00:31.8]} 0-1

[Event "Early-Titled-Tuesday-Blitz-October-17-2023"]
[Site "Chess.com"]
[Date "2023.10.17"]
[Round "5"]
[White "GradualismUnleashed"]
[Black "sokidze"]
[Result "0-1"]
[WhiteElo "2618"]
[BlackElo "2789"]
[TimeControl "180+1"]
[EndTime "8:57:44 PDT"]
[Termination "sokidze won by resignation"]

1. e4 {[%clk 0:03:00.9]} 1... c6 {[%clk 0:02:59.5]} 2. d4 {[%clk 0:03:00.6]}
2... d5 {[%clk 0:02:59.5]} 3. e5 {[%clk 0:03:01.3]} 3... Bf5 {[%clk 0:02:58.1]}
4. h4 {[%clk 0:03:01.9]} 4... h5 {[%clk 0:02:58]} 5. Bd3 {[%clk 0:03:02.5]} 5...
Bxd3 {[%clk 0:02:58]} 6. Qxd3 {[%clk 0:03:03.4]} 6... Qa5+ {[%clk 0:02:58.5]} 7.
Bd2 {[%clk 0:03:03.3]} 7... Qa6 {[%clk 0:02:58.8]} 8. e6 {[%clk 0:03:03.9]} 8...
Qxd3 {[%clk 0:02:56.3]} 9. exf7+ {[%clk 0:03:04.8]} 9... Kxf7 {[%clk 0:02:57]}
10. cxd3 {[%clk 0:03:05.3]} 10... Nh6 {[%clk 0:02:42.7]} 11. Bc3 {[%clk
0:03:02.9]} 11... Nf5 {[%clk 0:02:31.4]} 12. Nd2 {[%clk 0:03:01.6]} 12... g6
{[%clk 0:02:08.6]} 13. Ngf3 {[%clk 0:02:57.7]} 13... Bg7 {[%clk 0:02:06.1]} 14.
Ng5+ {[%clk 0:02:57.9]} 14... Kg8 {[%clk 0:02:04.8]} 15. Ndf3 {[%clk 0:02:54.8]}
15... Nd7 {[%clk 0:01:58.9]} 16. O-O {[%clk 0:02:53.6]} 16... Bf6 {[%clk
0:01:57.3]} 17. g3 {[%clk 0:02:49]} 17... Kg7 {[%clk 0:01:54.4]} 18. Rae1 {[%clk
0:02:45.4]} 18... Nf8 {[%clk 0:01:41.8]} 19. Re2 {[%clk 0:02:35.9]} 19... Nh7
{[%clk 0:01:26.5]} 20. Ne6+ {[%clk 0:02:31.9]} 20... Kf7 {[%clk 0:01:26.5]} 21.
Rfe1 {[%clk 0:02:31.1]} 21... Rac8 {[%clk 0:01:24.7]} 22. Kg2 {[%clk 0:02:22.8]}
22... Rhe8 {[%clk 0:01:22.2]} 23. b4 {[%clk 0:02:09.9]} 23... Nf8 {[%clk
0:01:17.7]} 24. Nc5 {[%clk 0:01:56.5]} 24... b6 {[%clk 0:01:05.3]} 25. Ne6
{[%clk 0:01:44.8]} 25... Nxe6 {[%clk 0:01:03.2]} 26. Rxe6 {[%clk 0:01:44.7]}
26... c5 {[%clk 0:01:00.1]} 27. bxc5 {[%clk 0:01:20.7]} 27... bxc5 {[%clk
0:00:59.5]} 28. Ra6 {[%clk 0:01:20.9]} 28... cxd4 {[%clk 0:00:52.5]} 29. Bd2
{[%clk 0:01:07.7]} 29... e5 {[%clk 0:00:33.5]} 30. Bg5 {[%clk 0:01:02.4]} 30...
Bg7 {[%clk 0:00:26.3]} 31. Rxa7+ {[%clk 0:01:01.9]} 31... Kg8 {[%clk 0:00:27]}
32. Rb1 {[%clk 0:00:28.5]} 32... e4 {[%clk 0:00:23.7]} 33. Ne1 {[%clk
0:00:24.9]} 33... Rc3 {[%clk 0:00:14.9]} 34. a4 {[%clk 0:00:21.2]} 34... Ra3
{[%clk 0:00:08.6]} 35. a5 {[%clk 0:00:20.5]} 35... Ra2 {[%clk 0:00:09]} 36. a6
{[%clk 0:00:18]} 36... e3 {[%clk 0:00:09]} 37. Kg1 {[%clk 0:00:07.6]} 37...
exf2+ {[%clk 0:00:09.1]} 0-1